fUST/lending_fUST_20250408
["ID","MTS","AMOUNT","RATE_DAILY","PERIOD"]
[357447744,1744069873522,-707.05545027,0.00028219,2]
[357447745,1744069873532,-980.27774188,0.00028219,2]
[357447746,1744069873543,-2097.62,0.00028219,2]
[357447747,1744069873553,-543.18,0.00028219,2]
[357447748,1744069873563,-1782.43,0.00028219,2]
[357447749,1744069873573,-701.54,0.00028219,2]
[357447750,1744069873582,-988.55199116,0.00028219,2]
[357447751,1744069873593,-1362.24785815,0.00028219,2]
[357447752,1744069873604,-883.1141679,0.00028219,2]
[357447753,1744069873614,-773.97,0.00028219,2]
[357447754,1744069873624,-1227.56,0.00028219,2]
[357447755,1744069873634,-520.13494557,0.00028219,2]
[357447756,1744069873645,-289.6,0.00028219,2]
[357447757,1744069873655,-2645.83,0.00028219,2]
[357447758,1744069873666,-2088.49,0.00028219,2]
[357447759,1744069873676,-443.92692992,0.00028219,2]
[357447760,1744069873686,-660.68,0.00028219,2]
[357447761,1744069873696,-2511.52,0.00028219,2]
[357447762,1744069873706,-1217.24,0.00028219,2]
[357447763,1744069873716,-846.01,0.00028219,2]
[357447764,1744069873726,-1241.1,0.00028219,2]
[357447765,1744069873737,-1414.74,0.00028219,2]
[357447766,1744069873747,-1232.56,0.00028219,2]
[357447767,1744069873757,-1157.65466219,0.00028219,2]
[357447768,1744069873767,-4737.25,0.00028219,2]
[357447769,1744069873778,-576.40687587,0.00028219,2]
[357447770,1744069873787,-1003.07,0.00028219,2]
[357447771,1744069873797,-2320.18,0.00028219,2]
[357447772,1744069873808,-1535.27,0.00028219,2]
[357447773,1744069873817,-3065.44,0.00028219,2]
[357447774,1744069873828,-459.9912206,0.00028219,2]
[357447775,1744069873838,-1377.31502017,0.00028219,2]
[357447776,1744069873848,-1564.18,0.00028219,2]
[357447777,1744069873858,-1772.91,0.00028219,2]
[357447778,1744069873868,-1246.73,0.00028219,2]
[357447779,1744069873878,-1765.41,0.00028219,2]
[357447780,1744069873887,-1937.76,0.00028219,2]
[357447781,1744069873899,-1205.59,0.00028219,2]
[357447782,1744069873910,-1239.4,0.00028219,2]
[357447783,1744069873923,-613.61,0.00028219,2]
[357447784,1744069873934,-1146.43,0.00028219,2]
[357447785,1744069873943,-523.395635,0.00028219,2]
[357447786,1744069873953,-995.54,0.00028219,2]
[357447787,1744069873963,-8728.55,0.00028219,2]
[357447788,1744069873974,-1073.18,0.00028219,2]
[357447789,1744069873985,-2424.41,0.00028219,2]
[357447790,1744069873996,-559.92,0.00028219,2]
[357447791,1744069874006,-1690.64,0.00028219,2]
[357447792,1744069874016,-1125.78,0.00028219,2]
[357447793,1744069874026,-545.20760105,0.00028219,2]
[357447794,1744069874036,-808.78,0.00028219,2]
[357447795,1744069874046,-1000.0,0.0002827,5]
[357447796,1744069874056,-1000.0,0.0002827,5]
[357447797,1744069874065,-436.44,0.00028449,19]
[357447798,1744069874075,-543.0,0.00029289,2]
[357447799,1744069874085,-2254.0,0.00029289,2]
[357447800,1744069874095,-248.71531821,0.00029518,2]
[357447801,1744069874104,-2000.0,0.0003,4]
[357447802,1744069874114,-257.91778498,0.00030887,2]
[357447803,1744069874124,-2706.05973826,0.00031236,2]
[357447804,1744069874133,-500.0,0.00031459,5]
[357447805,1744069874143,-267.46074303,0.00032256,2]
[357447806,1744069874153,-538.601,0.00032289,2]
[357447807,1744069874162,-500.0,0.00032877,2]
[357447808,1744069874171,-1000.0,0.00032877,5]
[357447809,1744069874182,-500.0,0.00033425,2]
[357447810,1744069874192,-277.35679052,0.00033625,2]
[357447811,1744069874203,-731.79210306,0.00033973,2]
[357447812,1744069874212,-287.61899177,0.00034994,2]
[357447813,1744069874222,-1169.7074027,0.00035816,4]
[357447814,1744069874232,-476.66839,0.0003589,2]
[357447815,1744069874242,-1258.32,0.00036,2]
[357447816,1744069874253,-134064.71295771,0.00036,2]
[357447817,1744069874263,-5360.82308028,0.000362,98]
[357447818,1744069874274,-5360.82308028,0.000362,98]
[357447819,1744069874286,-5360.82308028,0.0003628,98]
[357447820,1744069874298,-298.26089446,0.00036363,2]
[357447821,1744069874309,-375.81593026,0.00036871,5]
[357447822,1744069874319,-1500.0,0.00036871,5]
[357447823,1744069874330,-1500.0,0.00036871,5]
[357447824,1744069874341,-1000.0,0.00036871,5]
[357447825,1744069874351,-1500.0,0.00036871,2]
[357447826,1744069874363,-1500.0,0.00036871,5]
[357447827,1744069874374,-1000.0,0.00036871,5]
[357447828,1744069874385,-1500.0,0.00036871,5]
[357447829,1744069874394,-1500.0,0.00036871,5]
[357447830,1744069874405,-1500.0,0.00036871,5]
[357447831,1744069874415,-151.0,0.00036923,2]
[357447832,1744069874425,-175.5133285,0.00036923,2]
[357447833,1744069874437,-609.26552881,0.00036924,2]
[357447834,1744069874446,-500.0,0.00036971,120]
[357447835,1744069874458,-443205.097672,0.00037,2]
[357447836,1744069874468,-500.0,0.00037,120]
[357447837,1744069874478,-617.0,0.00037289,30]
[357447838,1744069874488,-500.0,0.00037404,2]
[357447839,1744069874498,-2000.0,0.000375,4]
[357447840,1744069874508,-174.956538,0.000376,60]
[357447841,1744069874518,-1500.0,0.00037671,5]
[357447842,1744069874529,-309.29654756,0.00037732,2]
[357447843,1744069874539,-298.42,0.000379,118]
[357447844,1744069874549,-548.65386863,0.00037971,5]
[357447845,1744069874559,-306.0,0.00037974,30]
[357447846,1744069874569,-153.0,0.00037974,30]
[357447847,1744069874580,-564.0809511,0.00037974,30]
[357447848,1744069874590,-564.0809511,0.00037974,30]
[357447849,1744069874600,-450.1803303,0.00037974,30]
[357447850,1744069874610,-5000.0,0.00037997,2]
[357447851,1744069874620,-20000.0,0.00038,7]
[357447852,1744069874631,-500.0,0.00038,14]
[357447853,1744069874641,-8612.77949503,0.00038,2]
[357447854,1744069874651,-200.0,0.00038,120]
[357447855,1744069874662,-500.0,0.00038,120]
[357447856,1744069874672,-783.73948285,0.00038,7]
[357447857,1744069874682,-419.36665037,0.00038,7]
[357447858,1744069874693,-151.0,0.00038,14]
[357447859,1744069874703,-160.0,0.00038,7]
[357447860,1744069874713,-160.0,0.00038,7]
[357447861,1744069874722,-12527.9349248,0.00038,7]
[357447862,1744069874732,-160.0,0.00038,7]
[357447863,1744069874742,-500.0,0.00038088,5]
[357447864,1744069874753,-1500.0,0.00038088,5]
[357447865,1744069874763,-1500.0,0.00038088,2]
[357447866,1744069874773,-6577.4616121,0.00038186,6]
[357447867,1744069874783,-1000.0,0.00038288,5]
[357447868,1744069874792,-260.47413193,0.00038288,5]
[357447869,1744069874802,-334.88,0.000383,31]
[357447870,1744069874812,-334.88,0.000383,31]
[357447871,1744069874822,-334.88,0.000383,31]
[357447872,1744069874832,-334.88,0.000383,31]
[357447873,1744069874842,-334.88,0.000383,31]
[357447874,1744069874851,-334.88,0.000383,31]
[357447875,1744069874860,-334.88,0.000383,31]
[357447876,1744069874870,-334.88,0.000383,31]
[357447877,1744069874880,-334.88,0.000383,31]
[357447878,1744069874889,-334.88,0.000383,31]
[357447879,1744069874899,-334.88,0.000383,31]
[357447880,1744069874909,-334.88,0.000383,31]
[357447881,1744069874921,-1500.0,0.00038356,5]
[357447882,1744069874931,-70753.01458017,0.0003845,2]
[357447883,1744069874940,-253.3,0.000385,120]
[357447884,1744069874950,-500.0,0.00038553,2]
[357447885,1744069874961,-151.0,0.00038571,2]
[357447886,1744069874970,-151.0,0.00038571,2]
[357447887,1744069874980,-200.0,0.000386,120]
[357447888,1744069874989,-584.378,0.00038645,7]
[357447889,1744069875001,-2200.0,0.00038645,7]
[357447890,1744069875011,-1000.0,0.00039,120]
[357447891,1744069875022,-320.74051982,0.00039101,2]
[357447892,1744069875032,-783.73948285,0.00039231,2]
[357447893,1744069875042,-1273.66963122,0.0004,60]
[357447894,1744069875052,-200.0,0.0004,120]
[357447895,1744069875063,-200.0,0.0004,120]
[357447896,1744069875073,-5000.0,0.0004,60]
[357447897,1744069875083,-150.02917877,0.00040117,5]
[357447898,1744069875093,-180.0,0.00040163,23]
[357447899,1744069875103,-571.1177471,0.0004047,2]
[357447900,1744069875112,-500.0,0.00040809,2]
[357447901,1744069875122,-1000.0,0.00041,120]
[357447902,1744069875132,-1042.0,0.0004107,120]
[357447903,1744069875142,-150.5,0.0004108,120]
[357447904,1744069875152,-1042.0,0.0004108,120]
[357447905,1744069875162,-150.5,0.0004109,120]
[357447906,1744069875171,-1042.0,0.0004109,120]
[357447907,1744069875180,-500.0,0.00041095,120]
[357447908,1744069875190,-500.0,0.00041095,120]
[357447909,1744069875200,-551.92938452,0.00041095,120]
[357447910,1744069875209,-1000.0,0.00041095,90]
[357447911,1744069875219,-1000.0,0.00041095,90]
[357447912,1744069875229,-2000.0,0.00041095,30]
[357447913,1744069875238,-2000.0,0.00041095,30]
[357447914,1744069875249,-1009.1,0.00041095,30]
[357447915,1744069875259,-500.0,0.00041095,2]
[357447916,1744069875270,-500.0,0.00041095,2]
[357447917,1744069875280,-500.0,0.00041095,2]
[357447918,1744069875290,-274.12093985,0.00041095,2]
[357447919,1744069875300,-1000.0,0.00041095,120]
[357447920,1744069875310,-1141.6849186,0.00041095,120]
[357447921,1744069875319,-25646.0403986,0.00041096,10]
[357447922,1744069875329,-476.66839,0.00041211,120]
[357447923,1744069875452,-164.9835011,0.00041369,10]
[357447924,1744069875463,-1222.53965541,0.00041369,10]
[357447925,1744069875474,-728.57117286,0.00041369,10]
[357447926,1744069875484,-2688.998,0.0004138,60]
[357447927,1744069875495,-2586.46239776,0.000416,60]
[357447928,1744069875504,-254.49337191,0.00041643,7]
[357447929,1744069875514,-811.19762298,0.00041643,7]
[357447930,1744069875526,-142230.70635407,0.00041643,7]
[357447931,1744069875700,-500.0,0.00021917,2]
[357447932,1744069875710,-500.0,0.00022191,2]
[357447933,1744069875721,-158.78495745,0.00022465,2]
[357447934,1744069875734,-258.22,0.00022465,2]
[357447935,1744069875751,-82.99504255,0.00022465,2]
[357447936,1744069875762,-500.0,0.00022739,2]
[357447937,1744069875774,-500.0,0.00023013,2]
[357447938,1744069875784,-202.42188,0.000249,7]
[357447939,1744069875795,-202.42188,0.00026301,7]
[357447940,1744069875805,-5168.14078052,0.00041643,7]
[357447941,1744069875975,-500.0,0.00021917,2]
[357447942,1744069875984,-500.0,0.00021917,2]
[357447943,1744069875995,-500.0,0.00021917,2]
[357447944,1744069876005,-500.0,0.00021917,2]
[357447945,1744069876015,-500.0,0.00022191,2]
[357447946,1744069876026,-500.0,0.00022191,2]
[357447947,1744069876035,-333.2,0.00022191,2]
[357447948,1744069876045,-500.0,0.00022465,2]
[357447949,1744069876055,-500.0,0.00022739,2]
[357447950,1744069876064,-500.0,0.00023013,2]
[357447951,1744069876074,-500.0,0.00023287,2]
[357447952,1744069876083,-500.0,0.00023561,2]
[357447953,1744069876093,-500.0,0.00023835,2]
[357447954,1744069876102,-202.42188,0.000249,7]
[357447955,1744069876112,-202.42188,0.00027945,7]
[357447956,1744069876122,-4119.61408964,0.00041643,7]
[357447957,1744069876392,-15.81782716,0.00021917,2]
[357447958,1744069876405,-484.18217284,0.00021917,2]
[357447959,1744069876414,-500.0,0.00022191,2]
[357447960,1744069876424,-500.0,0.00022191,2]
[357447961,1744069876434,-500.0,0.00022465,2]
[357447962,1744069876444,-500.0,0.00022465,2]
[357447963,1744069876453,-500.0,0.00022739,2]
[357447964,1744069876463,-500.0,0.00023013,2]
[357447965,1744069876472,-500.0,0.00023287,2]
[357447966,1744069876482,-500.0,0.00023287,2]
[357447967,1744069876492,-500.0,0.00023561,2]
[357447968,1744069876501,-500.0,0.00023561,2]
[357447969,1744069876511,-500.0,0.00023835,2]
[357447970,1744069876520,-500.0,0.00024109,2]
[357447971,1744069876529,-500.0,0.00024383,2]
[357447972,1744069876540,-500.0,0.00024657,2]
[357447973,1744069876549,-255.55815088,0.00024931,2]
[357447974,1744069876559,-202.42188,0.00026301,7]
[357447975,1744069876569,-202.42188,0.00027945,7]
[357447976,1744069876579,-10816.71276431,0.00041643,7]
[357447977,1744069876588,-10876.85766381,0.00041643,7]
[357447982,1744070106655,-300.0,0.0002023,2]
[357447983,1744070155805,-193.2661,0.0002023,2]
[357447984,1744070223896,-206.92241619,0.00020229,2]
[357447985,1744070283613,-208.165646,0.00020229,2]
[357448083,1744071038336,-166.452031,0.00019789,2]
[357448085,1744071038348,-199.18593029,0.0002007,2]
[357448087,1744071038358,-2706.05973826,0.0002017,2]
[357448088,1744071038369,-179.01,0.0002022,2]
[357448090,1744071038380,-300.0,0.00020229,2]
[357448092,1744071038391,-24206.7339,0.0002023,2]
[357448093,1744071038402,-183.8727597,0.0002027,2]
[357448094,1744071038413,-209.5582095,0.0002077,2]
[357448095,1744071038423,-323.3393039,0.00020971,2]
[357448096,1744071038433,-2343.96519678,0.00021116,2]
[357448097,1744071038444,-187.18479056,0.0002112,2]
[357448098,1744071038454,-200.0,0.00021204,2]
[357448099,1744071038464,-678.33,0.00021207,3]
[357448100,1744071038474,-500.0,0.00021216,2]
[357448101,1744071038484,-185.51470083,0.00021216,2]
[357448102,1744071038494,-370000.0,0.00021217,2]
[357448103,1744071038504,-349.5,0.0002122,2]
[357448104,1744071038514,-500.0,0.00021273,2]
[357448105,1744071038524,-500.0,0.00021273,2]
[357448106,1744071038535,-500.0,0.00021273,2]
[357448107,1744071038545,-500.0,0.00021273,2]
[357448108,1744071038555,-500.0,0.00021273,2]
[357448109,1744071038566,-500.0,0.00021273,2]
[357448110,1744071038576,-500.0,0.00021273,2]
[357448111,1744071038586,-500.0,0.00021273,2]
[357448112,1744071038596,-500.0,0.00021273,2]
[357448113,1744071038607,-500.0,0.00021273,2]
[357448114,1744071038617,-500.0,0.00021273,2]
[357448115,1744071038627,-500.0,0.00021273,2]
[357448116,1744071038638,-158.32935136,0.00021273,2]
[357448117,1744071038649,-500.0,0.00021273,2]
[357448118,1744071038659,-500.0,0.00021273,2]
[357448119,1744071038669,-500.0,0.00021273,2]
[357448120,1744071038679,-500.0,0.00021273,2]
[357448121,1744071038689,-500.0,0.00021273,2]
[357448122,1744071038699,-500.0,0.00021273,2]
[357448123,1744071038710,-500.0,0.00021273,2]
[357448124,1744071038720,-500.0,0.00021273,2]
[357448125,1744071038730,-500.0,0.00021273,2]
[357448126,1744071038740,-187.18479055,0.0002188,2]
[357448127,1744071038751,-500.0,0.00021917,2]
[357448128,1744071038762,-500.0,0.00021917,2]
[357448129,1744071038772,-500.0,0.00021917,2]
[357448130,1744071038782,-500.0,0.00021917,2]
[357448131,1744071038792,-500.0,0.00021917,2]
[357448132,1744071038802,-500.0,0.00021917,2]
[357448133,1744071038812,-500.0,0.00021917,2]
[357448134,1744071038823,-500.0,0.00021917,2]
[357448135,1744071038833,-500.0,0.00021917,2]
[357448136,1744071038844,-500.0,0.00021917,2]
[357448137,1744071038854,-500.0,0.00021917,2]
[357448138,1744071038864,-500.0,0.00021917,2]
[357448139,1744071038875,-500.0,0.00021917,2]
[357448140,1744071038890,-500.0,0.00021917,2]
[357448141,1744071038901,-500.0,0.00021917,2]
[357448142,1744071038911,-438.47735175,0.00021917,2]
[357448143,1744071038922,-500.0,0.00021917,2]
[357448144,1744071038933,-500.0,0.00021917,2]
[357448145,1744071038943,-500.0,0.00021917,2]
[357448146,1744071038954,-500.0,0.00021917,2]
[357448147,1744071038964,-500.0,0.00021917,2]
[357448148,1744071038974,-500.0,0.00021917,2]
[357448149,1744071038984,-200.0,0.00021917,2]
[357448150,1744071038994,-500.0,0.00021917,2]
[357448151,1744071039005,-500.0,0.00021917,2]
[357448152,1744071039015,-500.0,0.00021917,2]
[357448153,1744071039025,-500.0,0.00021917,2]
[357448154,1744071039036,-500.0,0.00021917,2]
[357448155,1744071039046,-500.0,0.00021917,2]
[357448156,1744071039055,-500.0,0.00021917,2]
[357448157,1744071039065,-500.0,0.00021917,2]
[357448158,1744071039076,-500.0,0.00021917,2]
[357448159,1744071039086,-500.0,0.00021917,2]
[357448160,1744071039096,-500.0,0.00021917,2]
[357448161,1744071039106,-500.0,0.00021917,2]
[357448162,1744071039116,-500.0,0.00021917,2]
[357448163,1744071039125,-500.0,0.00021917,2]
[357448164,1744071039135,-635.74306162,0.00021917,2]
[357448165,1744071039145,-500.0,0.00021917,2]
[357448166,1744071039155,-500.0,0.00021917,2]
[357448167,1744071039166,-500.0,0.00021917,2]
[357448168,1744071039176,-500.0,0.00021917,2]
[357448169,1744071039186,-500.0,0.00021917,2]
[357448170,1744071039196,-500.0,0.00021917,2]
[357448171,1744071039207,-500.0,0.00021917,2]
[357448172,1744071039217,-500.0,0.00021917,2]
[357448173,1744071039227,-500.0,0.00021917,2]
[357448174,1744071039238,-500.0,0.00021917,2]
[357448175,1744071039253,-500.0,0.00021917,2]
[357448176,1744071039264,-500.0,0.00021917,2]
[357448177,1744071039275,-500.0,0.00021917,2]
[357448178,1744071039286,-516.68,0.00021917,2]
[357448179,1744071039297,-500.0,0.00021917,2]
[357448180,1744071039308,-500.0,0.00021917,2]
[357448181,1744071039318,-500.0,0.00021917,2]
[357448182,1744071039330,-500.0,0.00021917,2]
[357448183,1744071039341,-500.0,0.00021917,2]
[357448184,1744071039352,-500.0,0.00021917,2]
[357448185,1744071039362,-552.85,0.00021917,2]
[357448186,1744071039372,-500.0,0.00021917,2]
[357448187,1744071039382,-500.0,0.00021917,2]
[357448188,1744071039393,-500.0,0.00021917,2]
[357448189,1744071039404,-500.0,0.00021917,2]
[357448190,1744071039414,-500.0,0.00021917,2]
[357448191,1744071039425,-500.0,0.00021917,2]
[357448192,1744071039435,-500.0,0.00021917,2]
[357448193,1744071039447,-208.10056394,0.00021917,2]
[357448194,1744071039457,-237.04056397,0.00021917,2]
[357448195,1744071039467,-500.0,0.00021917,2]
[357448196,1744071039476,-192.99163282,0.00021917,2]
[357448197,1744071039487,-500.0,0.00021917,2]
[357448198,1744071039497,-1077.56,0.00021917,2]
[357448199,1744071039507,-500.0,0.00021917,2]
[357448200,1744071039521,-200.0,0.00021917,2]
[357448201,1744071039531,-500.0,0.00021917,2]
[357448202,1744071039542,-500.0,0.00021917,2]
[357448203,1744071039552,-500.0,0.00021917,2]
[357448204,1744071039562,-500.0,0.00021917,2]
[357448205,1744071039573,-500.0,0.00021917,2]
[357448206,1744071039583,-500.0,0.00021917,2]
[357448207,1744071039594,-500.0,0.00021917,2]
[357448208,1744071039604,-922.53,0.00021917,2]
[357448209,1744071039614,-500.0,0.00021917,2]
[357448210,1744071039624,-500.0,0.00021917,2]
[357448211,1744071039635,-500.0,0.00021917,2]
[357448212,1744071039645,-500.0,0.00021917,2]
[357448213,1744071039655,-500.0,0.00021917,2]
[357448214,1744071039666,-846.4,0.00021917,2]
[357448215,1744071039676,-593.42,0.00021917,2]
[357448216,1744071039687,-500.0,0.00021917,2]
[357448217,1744071039698,-500.0,0.00021917,2]
[357448218,1744071039710,-606.9,0.00021917,2]
[357448219,1744071039720,-500.0,0.00021917,2]
[357448220,1744071039731,-500.0,0.00021917,2]
[357448221,1744071039742,-500.0,0.00021917,2]
[357448222,1744071039754,-500.0,0.00021917,2]
[357448223,1744071039763,-500.0,0.00021917,2]
[357448224,1744071039773,-500.0,0.00021917,2]
[357448225,1744071039783,-1031.3,0.00021917,2]
[357448226,1744071039793,-500.0,0.00021917,2]
[357448227,1744071039803,-500.0,0.00021917,2]
[357448228,1744071039814,-500.0,0.00021917,2]
[357448229,1744071039825,-500.0,0.00021917,2]
[357448230,1744071039835,-1005.06,0.00021917,2]
[357448231,1744071039846,-500.0,0.00021917,2]
[357448232,1744071039857,-500.0,0.00021917,2]
[357448233,1744071039868,-500.0,0.00021917,2]
[357448234,1744071039878,-500.0,0.00021917,2]
[357448235,1744071039889,-500.0,0.00021917,2]
[357448236,1744071039899,-500.0,0.00021917,2]
[357448237,1744071039910,-500.0,0.00021917,2]
[357448238,1744071039920,-500.0,0.00021917,2]
[357448239,1744071039931,-500.0,0.00021917,2]
[357448240,1744071039942,-500.0,0.00021917,2]
[357448241,1744071039952,-500.0,0.00021917,2]
[357448242,1744071039963,-500.0,0.00021917,2]
[357448243,1744071039974,-500.0,0.00021917,2]
[357448244,1744071039986,-500.0,0.00021917,2]
[357448245,1744071039998,-500.0,0.00021917,2]
[357448246,1744071040008,-500.0,0.00021917,2]
[357448247,1744071040018,-500.0,0.00021917,2]
[357448248,1744071040029,-500.0,0.00021917,2]
[357448249,1744071040039,-500.0,0.00021917,2]
[357448250,1744071040049,-762.57,0.00021917,2]
[357448251,1744071040059,-500.0,0.00021917,2]
[357448252,1744071040067,-540.43190331,0.00021917,2]
[357448253,1744071040075,-500.0,0.00021917,2]
[357448254,1744071040084,-500.0,0.00021917,2]
[357448255,1744071040094,-500.0,0.00021917,2]
[357448256,1744071040104,-500.0,0.00021917,2]
[357448257,1744071040113,-500.0,0.00021917,2]
[357448258,1744071040123,-500.0,0.00021917,2]
[357448259,1744071040132,-500.0,0.00021917,2]
[357448260,1744071040143,-500.0,0.00021917,2]
[357448261,1744071040153,-500.0,0.00021917,2]
[357448263,1744071040164,-500.0,0.00021917,2]
[357448264,1744071040175,-500.0,0.00021917,2]
[357448266,1744071040185,-500.0,0.00021917,2]
[357448268,1744071040195,-500.0,0.00021917,2]
[357448269,1744071040205,-810.87,0.00021917,2]
[357448270,1744071040215,-708.78,0.00021917,2]
[357448271,1744071040225,-500.0,0.00021917,2]
[357448272,1744071040236,-500.0,0.00021917,2]
[357448273,1744071040248,-500.0,0.00021917,2]
[357448274,1744071040259,-500.0,0.00021917,2]
[357448275,1744071040270,-500.0,0.00021917,2]
[357448277,1744071040280,-500.0,0.00021917,2]
[357448278,1744071040291,-732.62,0.00021917,2]
[357448279,1744071040301,-500.0,0.00021917,2]
[357448280,1744071040311,-500.0,0.00021917,2]
[357448281,1744071040322,-500.0,0.00021917,2]
[357448282,1744071040332,-1306.4,0.00021917,2]
[357448283,1744071040343,-588.76,0.00021917,2]
[357448284,1744071040354,-500.0,0.00021917,2]
[357448285,1744071040366,-1694.24,0.00021917,2]
[357448286,1744071040377,-500.0,0.00021917,2]
[357448287,1744071040388,-1372.44,0.00021917,2]
[357448288,1744071040399,-500.0,0.00021917,2]
[357448290,1744071040410,-1550.69,0.00021917,2]
[357448292,1744071040422,-500.0,0.00021917,2]
[357448294,1744071040433,-500.0,0.00021917,2]
[357448296,1744071040455,-500.0,0.00021917,2]
[357448297,1744071040467,-500.0,0.00021917,2]
[357448298,1744071040478,-500.0,0.00021917,2]
[357448299,1744071040489,-719.64,0.00021917,2]
[357448300,1744071040500,-527.99,0.00021917,2]
[357448301,1744071040511,-500.0,0.00021917,2]
[357448302,1744071040521,-500.0,0.00021917,2]
[357448303,1744071040531,-774.73,0.00021917,2]
[357448304,1744071040542,-500.0,0.00021917,2]
[357448305,1744071040553,-500.0,0.00021917,2]
[357448306,1744071040563,-516.63648851,0.00021917,2]
[357448307,1744071040574,-500.0,0.00021917,2]
[357448308,1744071040585,-500.0,0.00021917,2]
[357448309,1744071040596,-910.87,0.00021917,2]
[357448310,1744071040607,-500.0,0.00021917,2]
[357448311,1744071040619,-1062.59,0.00021917,2]
[357448312,1744071040629,-500.0,0.00021917,2]
[357448313,1744071040640,-788.7,0.00021917,2]
[357448314,1744071040650,-500.0,0.00021917,2]
[357448315,1744071040660,-500.0,0.00021917,2]
[357448316,1744071040671,-1455.88,0.00021917,2]
[357448317,1744071040681,-803.42,0.00021917,2]
[357448318,1744071040692,-599.48,0.00021917,2]
[357448319,1744071040702,-500.0,0.00021917,2]
[357448320,1744071040713,-500.0,0.00021917,2]
[357448321,1744071040724,-500.0,0.00021917,2]
[357448322,1744071040734,-528.31,0.00021917,2]
[357448323,1744071040745,-500.0,0.00021917,2]
[357448324,1744071040757,-3057.52,0.00021917,2]
[357448325,1744071040767,-500.0,0.00021917,2]
[357448326,1744071040777,-980.08,0.00021917,2]
[357448327,1744071040788,-500.0,0.00021917,2]
[357448328,1744071040798,-500.0,0.00021917,2]
[357448329,1744071040809,-500.0,0.00021917,2]
[357448330,1744071040819,-523.75,0.00021917,2]
[357448331,1744071040829,-500.0,0.00021917,2]
[357448332,1744071040839,-500.0,0.00021917,2]
[357448333,1744071040849,-500.0,0.00021917,2]
[357448334,1744071040859,-500.0,0.00021917,2]
[357448335,1744071040870,-500.0,0.00021917,2]
[357448336,1744071040881,-497.40924853,0.00021917,2]
[357448337,1744071040891,-1788.07,0.00021917,2]
[357448338,1744071040901,-500.0,0.00021917,2]
[357448339,1744071040911,-500.0,0.00021917,2]
[357448340,1744071040921,-1130.24,0.00021917,2]
[357448341,1744071040932,-500.0,0.00021917,2]
[357448342,1744071040942,-500.0,0.00021917,2]
[357448343,1744071040952,-500.0,0.00021917,2]
[357448344,1744071040962,-500.0,0.00021917,2]
[357448345,1744071040972,-500.0,0.00021917,2]
[357448346,1744071040983,-265.98706573,0.00021917,2]
[357448347,1744071040992,-500.0,0.00021917,2]
[357448348,1744071041003,-500.0,0.00021917,2]
[357448349,1744071041013,-500.0,0.00021917,2]
[357448350,1744071041023,-1034.15,0.00021917,2]
[357448351,1744071041033,-703.26,0.00021917,2]
[357448352,1744071041043,-521.62,0.00021917,2]
[357448353,1744071041058,-500.0,0.00021917,2]
[357448354,1744071041068,-912.33,0.00021917,2]
[357448355,1744071041079,-500.0,0.00021917,2]
[357448356,1744071041090,-500.0,0.00021917,2]